[Event "22nd Ruzomberok Open 2019"]
[Site "Ruzomberok"]
[Date "2019.07.05"]
[Round "7.30"]
[White "Zentko, Ladislav"]
[Black "Demko, Ladislav"]
[Result "1-0"]
[ECO "D02"]
[WhiteElo "1732"]
[BlackElo "1642"]
[Annotator "NA"]
[PlyCount "97"]
[EventDate "2019.06.29"]
[EventType "swiss"]
[EventCountry "SVK"]
[SourceTitle "playchess.com"]
[Source "ChessBase"]
[SourceQuality "1"]
[TimeControl "40/5400+30:1800+30"]

1. Nf3 {[%emt 0:00:00]} Nf6 {[%emt 0:00:00]} 2. d4 {[%emt 0:00:00]} d5 {[%emt 0:00:00]} 3. Bf4 {[%emt 0:00:27]} e6 {[%emt 0:00:19]} 4. e3 {[%emt 0:00:31]} Nbd7 {[%emt 0:00:34]} 5. Bd3 {[%emt 0:00:35]} Be7 {[%emt 0:00:40]} 6. O-O {[%emt 0:00:26]} O-O 7. Nbd2 c5 {[%emt 0:01:26]} 8. c3 {[%emt 0:01:39]} c4 {[%emt 0:02:11]} 9. Bc2 {[%emt 0:03:05]} Nh5 {[%emt 0:00:13]} 10. Ne5 {[%emt 0:01:57]} Nxf4 {[%emt 0:00:20]} 11. exf4 {[%emt 0:00:12]} f5 {[%emt 0:01:24]} 12. Nxd7 {[%emt 0:04:26]} Bxd7 {[%emt 0:00:18]} 13. Nf3 {[%emt 0:08:08]} Bf6 {[%emt 0:02:09]} 14. Qe2 {[%emt 0:02:02]} Qb6 {[%emt 0:00:14]} 15. Rfb1 {[%emt 0:04:10]} Qc6 {[%emt 0:00:24]} 16. Ne5 {[%emt 0:02:01]} Bxe5 {[%emt 0:00:19]} 17. Qxe5 {[%emt 0:05:56]} Rac8 {[%emt 0:02:09]} 18. Re1 {[%emt 0:01:26]} Rf6 {[%emt 0:00:21]} 19. g3 {[%emt 0:04:30]} Qc7 {[%emt 0:00:57]} 20. h4 {[%emt 0:03:15]} Qxe5 {[%emt 0:00:35]} 21. fxe5 {[%emt 0:02:28]} Rg6 {[%emt 0:00:33]} 22. Kg2 {[%emt 0:01:31]} h5 {[%emt 0:00:25]} 23. f3 {[%emt 0:08:20]} Rf8 {[%emt 0:07:28]} 24. Re2 {[%emt 0:01:03]} a5 {[%emt 0:01:39]} 25. Rf2 {[%emt 0:00:46]} b5 {[%emt 0:00:38]} 26. a3 {[%emt 0:00:29]} Be8 {[%emt 0:01:02]} 27. Raf1 {[%emt 0:00:59]} Rh6 {[%emt 0:00:07]} 28. Kh3 {[%emt 0:02:11]} g6 {[%emt 0:00:18]} 29. g4 {[%emt 0:03:23]} fxg4+ {[%emt 0:00:13]} 30. fxg4 {[%emt 0:00:12]} Rxf2 {[%emt 0:00:05]} 31. Rxf2 {[%emt 0:00:09]} hxg4+ {[%emt 0:00:37]} 32. Kxg4 {[%emt 0:00:07]} Bf7 {[%emt 0:00:28]} 33. Bd1 {[%emt 0:05:02]} Kg7 {[%emt 0:00:15]} 34. Kg5 {[%emt 0:00:22]} Rh8 {[%emt 0:00:09]} 35. Rf6 {[%emt 0:00:34]} Re8 {[%emt 0:01:35]} 36. Bc2 {[%emt 0:00:31]} Re7 {[%emt 0:00:38]} 37. Bxg6 Bxg6 38. Rxg6+ {[%emt 0:00:53]} Kf8 {[%emt 0:01:27]} 39. h5 {[%emt 0:01:30]} b4 {[%emt 0:00:31]} 40. h6 {[%emt 0:00:40]} Rf7 {[%emt 0:01:40]} 41. Rf6 {[%emt 0:30:20]} Kg8 42. Rxf7 Kxf7 {[%emt 0:31:23]} 43. h7 {[%emt 0:01:43]} Kg7 {[%emt 0:00:02]} 44. h8=Q+ Kxh8 45. Kf6 {[%emt 0:00:55]} Kg8 {[%emt 0:00:38]} 46. Kxe6 {[%emt 0:00:09]} bxa3 {[%emt 0:02:02]} 47. bxa3 {[%emt 0:00:09]} Kf8 {[%emt 0:00:29]} 48. Kxd5 {[%emt 0:00:49]} Kf7 49. e6+ 1-0

[Event "22nd Ruzomberok Open 2019"]
[Site "Ruzomberok"]
[Date "2019.07.05"]
[Round "7.31"]
[White "Konkol, Emil"]
[Black "Pecho, Juraj"]
[Result "0-1"]
[ECO "A01"]
[WhiteElo "1714"]
[BlackElo "1900"]
[Annotator "NA"]
[PlyCount "94"]
[EventDate "2019.06.29"]
[EventType "swiss"]
[EventCountry "SVK"]
[SourceTitle "playchess.com"]
[Source "ChessBase"]
[SourceQuality "1"]
[TimeControl "40/5400+30:1800+30"]

1. b3 {[%emt 0:00:00]} b6 {[%emt 0:00:24]} 2. Bb2 {[%emt 0:00:15]} Nf6 {[%emt 0:00:09]} 3. Nc3 {[%emt 0:00:42]} Bb7 {[%emt 0:00:10]} 4. f3 {[%emt 0:00:10]} g6 {[%emt 0:01:09]} 5. e4 {[%emt 0:00:30]} Bg7 {[%emt 0:00:42]} 6. e5 {[%emt 0:00:57]} Nd5 {[%emt 0:00:25]} 7. Nxd5 {[%emt 0:01:12]} Bxd5 {[%emt 0:00:02]} 8. c4 {[%emt 0:00:19]} Bb7 {[%emt 0:00:01]} 9. d4 {[%emt 0:00:03]} d6 {[%emt 0:01:38]} 10. f4 {[%emt 0:00:54]} O-O {[%emt 0:00:50]} 11. Nf3 {[%emt 0:00:20]} Nd7 {[%emt 0:00:42]} 12. d5 {[%emt 0:01:22]} c6 {[%emt 0:01:34]} 13. Qd2 {[%emt 0:00:55]} cxd5 {[%emt 0:00:31]} 14. cxd5 {[%emt 0:00:11]} Nc5 {[%emt 0:06:20]} 15. Rd1 {[%emt 0:04:43]} Qd7 {[%emt 0:04:21]} 16. exd6 {[%emt 0:03:43]} Bxb2 {[%emt 0:02:46]} 17. Qxb2 {[%emt 0:00:03]} Qxd6 {[%emt 0:00:14]} 18. Qe5 {[%emt 0:01:35]} Rad8 {[%emt 0:07:36]} 19. Bc4 {[%emt 0:01:19]} Qd7 {[%emt 0:04:46]} 20. O-O {[%emt 0:00:51]} b5 {[%emt 0:01:43]} 21. b4 {[%emt 0:01:03]} Na6 {[%emt 0:02:06]} 22. d6 {[%emt 0:00:56]} exd6 {[%emt 0:08:04]} 23. Qxb5 {[%emt 0:00:11]} Qxb5 {[%emt 0:03:33]} 24. Bxb5 {[%emt 0:00:03]} Nxb4 {[%emt 0:00:28]} 25. Bc4 {[%emt 0:00:25]} Rfe8 {[%emt 0:04:04]} 26. Rb1 {[%emt 0:01:14]} Bxf3 {[%emt 0:04:14]} 27. Rxf3 {[%emt 0:01:18]} a5 {[%emt 0:02:12]} 28. a3 {[%emt 0:01:21]} Nc2 {[%emt 0:01:05]} 29. Bd5 {[%emt 0:00:35]} Rb8 {[%emt 0:01:27]} 30. Rxb8 {[%emt 0:04:34]} Rxb8 {[%emt 0:00:02]} 31. Rc3 {[%emt 0:00:12]} Rb1+ {[%emt 0:05:43]} 32. Kf2 {[%emt 0:00:18]} Rb2 {[%emt 0:05:20]} 33. Kg3 {[%emt 0:01:02]} Nd4 {[%emt 0:02:49]} 34. Rc7 {[%emt 0:03:06]} Ne6 {[%emt 0:02:16]} 35. Rc6 {[%emt 0:03:41]} Nd4 {[%emt 0:02:10]} 36. Rc7 {[%emt 0:01:03]} Nf5+ {[%emt 0:05:11]} 37. Kf3 {[%emt 0:00:36]} Nd4+ {[%emt 0:01:16]} 38. Kg3 {[%emt 0:01:15]} Ne6 {[%emt 0:01:40]} 39. Rc6 {[%emt 0:00:17]} Rd2 {[%emt 0:01:28]} 40. Rxd6 {[%emt 0:02:08]} Rd3+ {[%emt 0:00:30]} 41. Kg4 {[%emt 0:31:57]} h5+ {[%emt 0:30:09]} 42. Kh4 {[%emt 0:00:03]} Nxf4 {[%emt 0:00:14]} 43. Bxf7+ {[%emt 0:03:52]} Kxf7 {[%emt 0:00:06]} 44. Ra6 {[%emt 0:00:09]} Rxa3 {[%emt 0:01:43]} 45. g3 {[%emt 0:00:19]} Ne6 {[%emt 0:00:10]} 46. h3 {[%emt 0:00:45]} Kf6 {[%emt 0:00:14]} 47. g4 {[%emt 0:00:25]} g5+ {[%emt 0:00:18]} 0-1

[Event "22nd Ruzomberok Open 2019"]
[Site "Ruzomberok"]
[Date "2019.07.05"]
[Round "7.32"]
[White "Gasper, Jaroslav"]
[Black "Galbavy, Dusan"]
[Result "1-0"]
[ECO "C02"]
[WhiteElo "1772"]
[BlackElo "1678"]
[Annotator "NA"]
[PlyCount "113"]
[EventDate "2019.06.29"]
[EventType "swiss"]
[EventCountry "SVK"]
[SourceTitle "playchess.com"]
[Source "ChessBase"]
[SourceQuality "1"]
[TimeControl "40/5400+30:1800+30"]

1. e4 {[%emt 0:01:17]} e6 {[%emt 0:07:16]} 2. e5 {[%emt 0:00:39]} d5 {[%emt 0:00:24]} 3. d4 {[%emt 0:00:13]} c5 {[%emt 0:00:07]} 4. c3 {[%emt 0:00:21]} Nc6 {[%emt 0:00:23]} 5. Bb5 {[%emt 0:00:08]} Qb6 {[%emt 0:00:27]} 6. Bxc6+ {[%emt 0:00:15]} bxc6 {[%emt 0:00:10]} 7. Nf3 {[%emt 0:00:43]} Ba6 {[%emt 0:00:34]} 8. Qc2 {[%emt 0:02:23]} Rc8 {[%emt 0:03:54]} 9. Be3 {[%emt 0:01:17]} cxd4 {[%emt 0:04:02]} 10. Nxd4 {[%emt 0:00:37]} Bc5 {[%emt 0:02:26]} 11. b4 {[%emt 0:00:13]} Bxd4 {[%emt 0:01:16]} 12. Bxd4 {[%emt 0:00:17]} Qc7 {[%emt 0:00:56]} 13. f4 {[%emt 0:04:52]} Ne7 {[%emt 0:00:34]} 14. g4 {[%emt 0:00:18]} h5 {[%emt 0:05:19]} 15. f5 {[%emt 0:00:35]} hxg4 {[%emt 0:03:40]} 16. fxe6 {[%emt 0:01:51]} fxe6 {[%emt 0:00:57]} 17. Nd2 {[%emt 0:01:10]} Nf5 {[%emt 0:01:58]} 18. O-O-O {[%emt 0:00:24]} Rh3 {[%emt 0:08:07]} 19. Nb3 {[%emt 0:00:46]} Bc4 {[%emt 0:01:56]} 20. Nc5 {[%emt 0:01:40]} Qe7 {[%emt 0:04:31]} 21. Kb2 {[%emt 0:03:29]} Kf7 {[%emt 0:04:00]} 22. Rhg1 {[%emt 0:00:37]} Qh4 {[%emt 0:02:43]} 23. Rd2 {[%emt 0:03:48]} Rh8 {[%emt 0:09:08]} 24. Rgg2 {[%emt 0:06:50]} Bf1 {[%emt 0:10:29]} 25. Rgf2 {[%emt 0:00:34]} Rf3 {[%emt 0:00:27]} 26. Qb1 {[%emt 0:07:58]} Bc4 {[%emt 0:03:48]} 27. Qc2 {[%emt 0:04:53]} a5 {[%emt 0:05:50]} 28. Rxf3 {[%emt 0:06:13]} gxf3 {[%emt 0:00:25]} 29. bxa5 {[%emt 0:12:43]} Rb8+ {[%emt 0:01:57]} 30. Nb3 {[%emt 0:03:28]} Nxd4 {[%emt 0:01:00]} 31. cxd4 {[%emt 0:01:31]} Kg8 {[%emt 0:04:05]} 32. Kc1 {[%emt 0:03:01]} Qe1+ {[%emt 0:01:20]} 33. Kb2 Qe3 {[%emt 0:01:36]} 34. Qc3 {[%emt 0:05:31]} Qe1 {[%emt 0:01:48]} 35. Qc2 {[%emt 0:01:22]} c5 {[%emt 0:02:56]} 36. Ka3 {[%emt 0:00:58]} Rf8 {[%emt 0:02:43]} 37. Rf2 {[%emt 0:01:27]} Be2 {[%emt 0:00:28]} 38. Qg6 {[%emt 0:00:47]} Qxf2 {[%emt 0:03:08]} 39. Qxe6+ {[%emt 0:00:52]} Rf7 {[%emt 0:01:21]} 40. Qe8+ {[%emt 0:00:34]} Kh7 {[%emt 0:01:00]} 41. Qxf7 {[%emt 0:30:14]} Qxh2 {[%emt 0:30:48]} 42. Nxc5 {[%emt 0:01:18]} Bc4 {[%emt 0:00:00]} 43. Qxf3 {[%emt 0:00:00]} Qxa2+ {[%emt 0:00:00]} 44. Kb4 {[%emt 0:00:00]} Qb2+ {[%emt 0:00:00]} 45. Nb3 {[%emt 0:00:00]} Bxb3 {[%emt 0:00:00]} 46. Qxb3 {[%emt 0:00:00]} Qxd4+ {[%emt 0:00:00]} 47. Kb5 {[%emt 0:00:00]} Qxe5 {[%emt 0:00:00]} 48. a6 {[%emt 0:00:00]} d4+ {[%emt 0:00:00]} 49. Kc6 {[%emt 0:00:00]} Qe4+ {[%emt 0:00:00]} 50. Kc5 {[%emt 0:00:00]} d3 {[%emt 0:00:00]} 51. Qd1 {[%emt 0:00:00]} Qe2 {[%emt 0:00:00]} 52. Qh1+ {[%emt 0:00:00]} Kg6 {[%emt 0:00:00]} 53. Qg1+ {[%emt 0:00:00]} Kf6 {[%emt 0:00:00]} 54. a7 {[%emt 0:00:00]} d2 {[%emt 0:00:00]} 55. a8=Q {[%emt 0:00:00]} d1=Q {[%emt 0:00:00]} 56. Qf8+ {[%emt 0:00:00]} Ke6 {[%emt 0:00:00]} 57. Qg6+ {[%emt 0:00:00]} 1-0

[Event "22nd Ruzomberok Open 2019"]
[Site "Ruzomberok"]
[Date "2019.07.05"]
[Round "7.33"]
[White "Mudron, Jan"]
[Black "Slyk, Piotr"]
[Result "1-0"]
[ECO "A40"]
[WhiteElo "1756"]
[BlackElo "1082"]
[Annotator "NA"]
[PlyCount "169"]
[EventDate "2019.06.29"]
[EventType "swiss"]
[EventCountry "SVK"]
[SourceTitle "playchess.com"]
[Source "ChessBase"]
[SourceQuality "1"]
[TimeControl "40/5400+30:1800+30"]

1. d4 {[%emt 0:00:00]} e6 {[%emt 0:00:00]} 2. c4 {[%emt 0:00:00]} g6 {[%emt 0:00:00]} 3. Nc3 {[%emt 0:00:00]} Bg7 {[%emt 0:00:24]} 4. e4 {[%emt 0:00:00]} d6 {[%emt 0:00:17]} 5. Nf3 {[%emt 0:00:01]} Nc6 {[%emt 0:00:17]} 6. Be3 {[%emt 0:00:57]} a6 {[%emt 0:00:09]} 7. Be2 {[%emt 0:00:32]} Nge7 {[%emt 0:00:51]} 8. Qd2 {[%emt 0:00:33]} d5 {[%emt 0:00:46]} 9. e5 {[%emt 0:00:38]} O-O {[%emt 0:00:59]} 10. c5 {[%emt 0:01:01]} b6 {[%emt 0:00:30]} 11. cxb6 {[%emt 0:00:14]} cxb6 {[%emt 0:00:08]} 12. Rc1 {[%emt 0:00:39]} Bd7 {[%emt 0:00:08]} 13. O-O {[%emt 0:00:20]} Nf5 {[%emt 0:00:46]} 14. Bf4 {[%emt 0:04:36]} b5 {[%emt 0:00:20]} 15. b3 {[%emt 0:04:17]} Rc8 {[%emt 0:00:43]} 16. Nb1 {[%emt 0:04:18]} Qa5 {[%emt 0:00:52]} 17. Qb2 {[%emt 0:11:00]} Qb6 {[%emt 0:01:26]} 18. Rcd1 {[%emt 0:14:50]} Nb4 {[%emt 0:00:38]} 19. Rd2 {[%emt 0:01:05]} Rc7 {[%emt 0:00:37]} 20. g4 {[%emt 0:00:36]} Nh6 {[%emt 0:00:38]} 21. a3 {[%emt 0:00:32]} Nc6 {[%emt 0:00:41]} 22. h3 {[%emt 0:00:42]} f6 {[%emt 0:00:59]} 23. exf6 {[%emt 0:00:15]} Rxf6 {[%emt 0:00:13]} 24. Bxc7 {[%emt 0:00:09]} Qxc7 {[%emt 0:00:02]} 25. g5 {[%emt 0:00:52]} Rxf3 {[%emt 0:00:34]} 26. Bxf3 {[%emt 0:00:08]} Nf5 {[%emt 0:00:16]} 27. Rd3 {[%emt 0:13:49]} Qf4 {[%emt 0:00:18]} 28. Qd2 {[%emt 0:01:31]} Qxd2 {[%emt 0:00:52]} 29. Nxd2 {[%emt 0:00:28]} Bxd4 {[%emt 0:00:28]} 30. Rc1 {[%emt 0:09:39]} Kf7 {[%emt 0:00:20]} 31. b4 {[%emt 0:07:12]} Ne5 {[%emt 0:01:18]} 32. Rb3 {[%emt 0:00:24]} Nc6 {[%emt 0:00:28]} 33. Kf1 {[%emt 0:02:03]} h6 {[%emt 0:00:28]} 34. gxh6 {[%emt 0:00:39]} Nxh6 {[%emt 0:00:47]} 35. Bg4 {[%emt 0:00:33]} Nxg4 {[%emt 0:00:34]} 36. hxg4 {[%emt 0:00:07]} e5 {[%emt 0:00:53]} 37. f3 {[%emt 0:00:05]} Ke6 {[%emt 0:00:47]} 38. Kg2 {[%emt 0:00:15]} a5 {[%emt 0:00:51]} 39. Rh1 {[%emt 0:00:17]} Be8 {[%emt 0:00:18]} 40. Rh7 {[%emt 0:00:51]} Bf7 {[%emt 0:00:10]} 41. bxa5 {[%emt 0:30:33]} Nxa5 {[%emt 0:31:09]} 42. Rxb5 {[%emt 0:00:08]} Nc6 {[%emt 0:01:48]} 43. Nb3 {[%emt 0:00:42]} Be3 {[%emt 0:00:16]} 44. Nc5+ {[%emt 0:00:16]} Bxc5 {[%emt 0:00:49]} 45. Rxc5 {[%emt 0:00:04]} Ne7 {[%emt 0:00:26]} 46. Rb5 {[%emt 0:01:17]} Be8 {[%emt 0:01:08]} 47. Rb6+ {[%emt 0:00:31]} Nc6 {[%emt 0:00:58]} 48. Rh8 {[%emt 0:02:39]} Bd7 {[%emt 0:00:24]} 49. Rh6 {[%emt 0:04:51]} Be8 {[%emt 0:00:11]} 50. Kf2 {[%emt 0:00:41]} Kf6 {[%emt 0:00:28]} 51. Rh8 {[%emt 0:01:14]} Bd7 {[%emt 0:00:44]} 52. Rh7 {[%emt 0:01:38]} Ke6 {[%emt 0:00:25]} 53. Rg7 {[%emt 0:02:35]} Be8 {[%emt 0:00:46]} 54. Ke3 {[%emt 0:01:38]} Kd6 {[%emt 0:00:25]} 55. Rg8 {[%emt 0:02:27]} Bf7 {[%emt 0:00:05]} 56. Rf8 {[%emt 0:00:37]} d4+ {[%emt 0:00:58]} 57. Kd3 {[%emt 0:00:46]} Bd5 {[%emt 0:00:40]} 58. Rf6+ {[%emt 0:01:13]} Kc5 {[%emt 0:00:11]} 59. Rb2 {[%emt 0:04:24]} Bc4+ {[%emt 0:00:24]} 60. Kd2 {[%emt 0:00:14]} Ne7 {[%emt 0:01:54]} 61. Rb7 {[%emt 0:02:38]} Nd5 {[%emt 0:01:43]} 62. Rxg6 {[%emt 0:00:41]} Nf4 {[%emt 0:00:38]} 63. Rg5 {[%emt 0:01:39]} Kc6 {[%emt 0:00:48]} 64. Re7 {[%emt 0:00:00]} Nh3 {[%emt 0:00:00]} 65. Rgxe5 {[%emt 0:00:00]} Nf4 {[%emt 0:00:00]} 66. Rg5 {[%emt 0:00:00]} Bd5 {[%emt 0:00:00]} 67. Rxd5 {[%emt 0:00:00]} Kxd5 {[%emt 0:00:00]} 68. Re4 {[%emt 0:00:00]} Ng6 {[%emt 0:00:00]} 69. Kd3 {[%emt 0:00:00]} Kc5 {[%emt 0:00:00]} 70. f4 {[%emt 0:00:00]} Kd5 {[%emt 0:00:00]} 71. Rxd4+ {[%emt 0:00:00]} Ke6 {[%emt 0:00:00]} 72. f5+ {[%emt 0:00:00]} Kf7 {[%emt 0:00:00]} 73. fxg6+ {[%emt 0:00:00]} Kxg6 {[%emt 0:00:00]} 74. Rd5 {[%emt 0:00:00]} Kf6 {[%emt 0:00:00]} 75. Rf5+ {[%emt 0:00:00]} Ke6 {[%emt 0:00:00]} 76. Ke4 {[%emt 0:00:00]} Kd6 {[%emt 0:00:00]} 77. g5 {[%emt 0:00:00]} Ke6 {[%emt 0:00:00]} 78. g6 {[%emt 0:00:00]} Kd6 {[%emt 0:00:00]} 79. g7 {[%emt 0:00:00]} Ke6 {[%emt 0:00:00]} 80. g8=Q+ {[%emt 0:00:00]} Ke7 {[%emt 0:00:00]} 81. Qf7+ {[%emt 0:00:00]} Kd6 {[%emt 0:00:00]} 82. Qd5+ {[%emt 0:00:00]} Kc7 {[%emt 0:00:00]} 83. Rf6 {[%emt 0:00:00]} Kc8 {[%emt 0:00:00]} 84. Rf7 {[%emt 0:00:00]} Kb8 {[%emt 0:00:00]} 85. Qb7# {[%emt 0:00:00]} 1-0

[Event "22nd Ruzomberok Open 2019"]
[Site "Ruzomberok"]
[Date "2019.07.05"]
[Round "7.34"]
[White "Malinovsky, Jozef"]
[Black "Cebo, Vladimir"]
[Result "1-0"]
[ECO "D02"]
[WhiteElo "1715"]
[BlackElo "1577"]
[Annotator "NA"]
[PlyCount "129"]
[EventDate "2019.06.29"]
[EventType "swiss"]
[EventCountry "SVK"]
[SourceTitle "playchess.com"]
[Source "ChessBase"]
[SourceQuality "1"]
[TimeControl "40/5400+30:1800+30"]

1. Nf3 {[%emt 0:04:59]} d5 {[%emt 0:00:00]} 2. d4 {[%emt 0:00:35]} Nf6 {[%emt 0:00:11]} 3. Bf4 {[%emt 0:01:25]} Bf5 {[%emt 0:01:35]} 4. e3 {[%emt 0:01:16]} e6 {[%emt 0:01:17]} 5. c3 {[%emt 0:02:49]} Nbd7 {[%emt 0:02:35]} 6. Nbd2 {[%emt 0:03:33]} c5 {[%emt 0:02:34]} 7. Be2 {[%emt 0:02:50]} Be7 {[%emt 0:00:12]} 8. O-O {[%emt 0:02:58]} O-O {[%emt 0:00:33]} 9. Ne5 {[%emt 0:01:43]} cxd4 {[%emt 0:02:14]} 10. Nxd7 {[%emt 0:01:17]} Qxd7 {[%emt 0:01:10]} 11. exd4 {[%emt 0:00:57]} Bd6 {[%emt 0:01:50]} 12. Bxd6 {[%emt 0:01:15]} Qxd6 {[%emt 0:01:04]} 13. Re1 {[%emt 0:00:19]} a6 {[%emt 0:01:25]} 14. Nf1 {[%emt 0:01:49]} Ne4 {[%emt 0:03:31]} 15. f3 {[%emt 0:05:48]} Nf6 {[%emt 0:02:00]} 16. Bd3 {[%emt 0:02:23]} Bxd3 {[%emt 0:04:13]} 17. Qxd3 {[%emt 0:00:01]} Nd7 {[%emt 0:00:22]} 18. a4 {[%emt 0:03:02]} Rac8 {[%emt 0:02:59]} 19. Re2 {[%emt 0:01:08]} f6 {[%emt 0:03:31]} 20. Rd2 {[%emt 0:02:22]} Rc4 {[%emt 0:04:45]} 21. Ne3 {[%emt 0:00:36]} Rc6 {[%emt 0:00:17]} 22. a5 {[%emt 0:01:04]} f5 {[%emt 0:02:55]} 23. Re2 {[%emt 0:07:03]} Rf6 {[%emt 0:01:27]} 24. Nf1 {[%emt 0:00:51]} Rc8 {[%emt 0:07:31]} 25. Qd1 {[%emt 0:04:05]} Nf8 {[%emt 0:04:49]} 26. Qb3 {[%emt 0:00:19]} Qc7 {[%emt 0:02:07]} 27. Rae1 {[%emt 0:00:27]} Qd7 {[%emt 0:01:15]} 28. Qa2 {[%emt 0:05:58]} Ng6 {[%emt 0:02:10]} 29. g3 {[%emt 0:04:36]} h5 {[%emt 0:00:37]} 30. f4 {[%emt 0:01:37]} h4 {[%emt 0:00:49]} 31. Qb3 {[%emt 0:02:12]} Kf7 {[%emt 0:10:13]} 32. Nd2 {[%emt 0:00:39]} hxg3 {[%emt 0:00:54]} 33. hxg3 {[%emt 0:00:01]} Rh8 {[%emt 0:07:26]} 34. Nf3 {[%emt 0:01:33]} Kg8 {[%emt 0:03:32]} 35. Ng5 {[%emt 0:02:30]} Nf8 {[%emt 0:00:36]} 36. Kg2 {[%emt 0:05:38]} Rfh6 {[%emt 0:02:38]} 37. Kf3 {[%emt 0:00:32]} Rf6 {[%emt 0:02:29]} 38. Qb4 {[%emt 0:04:19]} Rhh6 {[%emt 0:00:58]} 39. Kg2 {[%emt 0:01:10]} Rfg6 {[%emt 0:02:15]} 40. Qc5 {[%emt 0:02:10]} Qd8 {[%emt 0:04:18]} 41. Nf3 {[%emt 0:31:48]} Rg4 {[%emt 0:35:18]} 42. Kf2 {[%emt 0:03:12]} Qe8 {[%emt 0:07:06]} 43. Qxd5 {[%emt 0:00:50]} Qh5 {[%emt 0:00:00]} 44. Qxb7 {[%emt 0:00:00]} Rxg3 {[%emt 0:00:00]} 45. Rf1 {[%emt 0:00:00]} Qg4 {[%emt 0:00:00]} 46. Ke1 {[%emt 0:00:00]} Qxf4 {[%emt 0:00:00]} 47. Nd2 {[%emt 0:00:00]} Qg5 {[%emt 0:00:00]} 48. Qxa6 {[%emt 0:00:00]} Rg1 {[%emt 0:00:00]} 49. Qd3 {[%emt 0:00:00]} Rhh1 {[%emt 0:00:00]} 50. Ref2 {[%emt 0:00:00]} Ng6 {[%emt 0:00:00]} 51. Qf3 {[%emt 0:00:00]} Rxf1+ {[%emt 0:00:17]} 52. Rxf1 {[%emt 0:00:00]} Rxf1+ {[%emt 0:01:14]} 53. Qxf1 {[%emt 0:00:00]} Nf4 {[%emt 0:01:32]} 54. Kd1 {[%emt 0:00:00]} Ng2 {[%emt 0:00:45]} 55. Kc1 {[%emt 0:00:00]} Ne3 {[%emt 0:00:36]} 56. Qh1 {[%emt 0:00:00]} f4 {[%emt 0:00:28]} 57. b4 {[%emt 0:00:00]} Qf5 {[%emt 0:00:34]} 58. Qe4 {[%emt 0:00:00]} Qg4 {[%emt 0:00:16]} 59. Kb2 {[%emt 0:00:00]} Nd5 {[%emt 0:00:37]} 60. a6 {[%emt 0:00:00]} Qh3 {[%emt 0:00:10]} 61. Nf3 {[%emt 0:00:00]} Qg2+ {[%emt 0:00:33]} 62. Kb3 {[%emt 0:00:00]} Nc7 {[%emt 0:00:20]} 63. a7 {[%emt 0:00:00]} Qf1 {[%emt 0:01:08]} 64. a8=Q+ {[%emt 0:00:00]} Kf7 {[%emt 0:00:28]} 65. Qxf4+ {[%emt 0:00:00]} 1-0

[Event "22nd Ruzomberok Open 2019"]
[Site "Ruzomberok"]
[Date "2019.07.05"]
[Round "7.36"]
[White "Segeda, Milos"]
[Black "Kunzo, Slavomir"]
[Result "0-1"]
[ECO "B27"]
[WhiteElo "1446"]
[BlackElo "1593"]
[Annotator "NA"]
[PlyCount "45"]
[EventDate "2019.06.29"]
[EventType "swiss"]
[EventCountry "SVK"]
[SourceTitle "playchess.com"]
[Source "ChessBase"]
[SourceQuality "1"]
[TimeControl "40/5400+30:1800+30"]

1. e4 {[%emt 0:00:00]} c5 {[%emt 0:09:26]} 2. Nf3 {[%emt 0:00:49]} g6 {[%emt 0:01:21]} 3. Nc3 {[%emt 0:03:34]} Bg7 {[%emt 0:01:05]} 4. Bc4 {[%emt 0:03:19]} e6 {[%emt 0:02:23]} 5. O-O {[%emt 0:00:43]} Ne7 {[%emt 0:00:42]} 6. Re1 {[%emt 0:00:57]} O-O {[%emt 0:00:28]} 7. a4 {[%emt 0:04:25]} d5 {[%emt 0:00:25]} 8. Be2 {[%emt 0:09:40]} Nbc6 {[%emt 0:01:01]} 9. Nb5 {[%emt 0:09:52]} a6 {[%emt 0:00:56]} 10. Na3 {[%emt 0:02:22]} dxe4 {[%emt 0:00:16]} 11. Ng5 {[%emt 0:01:15]} f5 {[%emt 0:00:49]} 12. Bc4 {[%emt 0:02:01]} Nd5 {[%emt 0:00:26]} 13. h4 {[%emt 0:11:42]} h6 {[%emt 0:06:20]} 14. h5 {[%emt 0:00:25]} Qxg5 {[%emt 0:00:38]} 15. hxg6 {[%emt 0:01:16]} Qxg6 {[%emt 0:01:16]} 16. Be2 {[%emt 0:00:23]} Nf4 {[%emt 0:00:26]} 17. g3 {[%emt 0:02:37]} Nd4 {[%emt 0:07:13]} 18. Nc4 {[%emt 0:00:26]} Nfxe2+ {[%emt 0:01:57]} 19. Rxe2 Nxe2+ 20. Qxe2 {[%emt 0:03:25]} f4 {[%emt 0:01:07]} 21. d3 {[%emt 0:01:44]} fxg3 {[%emt 0:00:34]} 22. Be3 {[%emt 0:01:13]} gxf2+ {[%emt 0:00:59]} 23. Kh1 0-1

[Event "22nd Ruzomberok Open 2019"]
[Site "Ruzomberok"]
[Date "2019.07.06"]
[Round "8.1"]
[White "Movsesian, Julia"]
[Black "Zvarik, Martin"]
[Result "0-1"]
[ECO "C55"]
[WhiteElo "2291"]
[BlackElo "2308"]
[Annotator "NA"]
[PlyCount "74"]
[EventDate "2019.06.29"]
[EventType "swiss"]
[EventCountry "SVK"]
[SourceTitle "playchess.com"]
[Source "ChessBase"]
[SourceQuality "1"]
[TimeControl "40/5400+30:1800+30"]

1. e4 {[%emt 0:00:00]} e5 {[%emt 0:00:03]} 2. Nf3 {[%emt 0:00:00]} Nc6 {[%emt 0:00:42]} 3. Bc4 {[%emt 0:00:18]} Nf6 {[%emt 0:00:53]} 4. d3 {[%emt 0:00:21]} h6 {[%emt 0:00:34]} 5. a4 {[%emt 0:00:58]} g5 {[%emt 0:00:33]} 6. O-O {[%emt 0:02:06]} d6 {[%emt 0:08:20]} 7. c3 {[%emt 0:01:21]} Bg7 {[%emt 0:03:50]} 8. Nbd2 {[%emt 0:09:19]} g4 {[%emt 0:05:42]} 9. Ne1 {[%emt 0:01:28]} Be6 {[%emt 0:02:56]} 10. Nc2 {[%emt 0:04:31]} Ne7 {[%emt 0:10:41]} 11. Ne3 {[%emt 0:03:11]} h5 {[%emt 0:00:42]} 12. Qb3 {[%emt 0:07:36]} Qc8 {[%emt 0:01:28]} 13. d4 {[%emt 0:01:09]} Bxc4 {[%emt 0:02:02]} 14. Qxc4 {[%emt 0:00:24]} exd4 {[%emt 0:07:27]} 15. cxd4 {[%emt 0:00:22]} d5 {[%emt 0:04:13]} 16. Qd3 {[%emt 0:01:02]} dxe4 {[%emt 0:09:08]} 17. Nxe4 {[%emt 0:00:46]} Nxe4 {[%emt 0:00:08]} 18. Qxe4 {[%emt 0:00:05]} f5 {[%emt 0:00:06]} 19. Qd3 {[%emt 0:00:53]} Qd7 {[%emt 0:00:36]} 20. Qb3 {[%emt 0:03:18]} O-O-O {[%emt 0:02:43]} 21. Nc2 {[%emt 0:06:38]} h4 {[%emt 0:05:08]} 22. Re1 {[%emt 0:02:37]} h3 {[%emt 0:03:41]} 23. Bg5 {[%emt 0:01:18]} Rde8 {[%emt 0:01:40]} 24. Qe6 {[%emt 0:14:14]} Nd5 {[%emt 0:02:27]} 25. Qxd7+ {[%emt 0:00:43]} Kxd7 {[%emt 0:00:05]} 26. Ne3 {[%emt 0:00:11]} Nxe3 {[%emt 0:00:40]} 27. fxe3 {[%emt 0:00:21]} hxg2 {[%emt 0:03:47]} 28. Kxg2 {[%emt 0:00:20]} Bf8 {[%emt 0:01:45]} 29. Bf4 {[%emt 0:02:42]} Bd6 {[%emt 0:00:40]} 30. Bxd6 {[%emt 0:04:40]} Kxd6 {[%emt 0:00:41]} 31. Rac1 {[%emt 0:02:40]} Rh3 {[%emt 0:02:03]} 32. Rc5 {[%emt 0:01:15]} f4 {[%emt 0:04:19]} 33. Rg5 {[%emt 0:01:42]} Rhxe3 {[%emt 0:01:32]} 34. Rc1 {[%emt 0:00:57]} Re2+ {[%emt 0:00:35]} 35. Kg1 {[%emt 0:00:34]} f3 {[%emt 0:02:03]} 36. Rxg4 {[%emt 0:05:06]} f2+ {[%emt 0:00:39]} 37. Kg2 {[%emt 0:00:16]} Re1 {[%emt 0:00:12]} 0-1